[Event "7th Ali Ipek Memorial 2019"]
[Site "Ankara"]
[Date "2019.03.07"]
[Round "2.9"]
[White "Aydin, Aytac"]
[Black "Sekerci, Berkin"]
[Result "0-1"]
[ECO "D85"]
[WhiteElo "1373"]
[BlackElo "1711"]
[Annotator "NA RC"]
[PlyCount "182"]
[EventDate "2019.03.06"]
[EventType "swiss"]
[EventCountry "TUR"]
[SourceTitle "playchess.com"]
[Source "ChessBase"]
[SourceQuality "1"]
[TimeControl "5400+30"]

1. d4 {[%emt 0:00:30]} Nf6 {[%emt 0:00:30]} 2. c4 {[%emt 0:00:30]} g6 {[%emt 0:00:30]} 3. Nc3 {[%emt 0:00:30]} d5 {[%emt 0:00:30]} 4. cxd5 {[%emt 0:00:00]} Nxd5 {[%emt 0:00:00]} 5. e4 {[%emt 0:00:00]} Nxc3 {[%emt 0:00:00]} 6. bxc3 {[%emt 0:00:00]} Bg7 {[%emt 0:00:30]} 7. Nf3 {[%emt 0:00:00]} c5 {[%emt 0:00:00]} 8. Rb1 {[%emt 0:00:00]} O-O {[%emt 0:00:00]} 9. Be2 {[%emt 0:00:00]} b6 {[%emt 0:00:00]} 10. O-O {[%emt 0:00:30]} Bb7 {[%emt 0:01:00]} 11. e5 {[%emt 0:04:30]} Nc6 {[%emt 0:03:30]} 12. Bf4 {[%emt 0:00:30]} cxd4 {[%emt 0:04:30]} 13. cxd4 {[%emt 0:00:30]} e6 {[%emt 0:04:30]} 14. Qd2 {[%emt 0:02:30]} Qd7 {[%emt 0:04:30]} 15. Rfd1 {[%emt 0:00:30]} Rfd8 {[%emt 0:00:30]} 16. Bg5 {[%emt 0:00:30]} Rdc8 {[%emt 0:00:30]} 17. Bf6 {[%emt 0:01:30]} Bf8 {[%emt 0:03:30]} 18. h4 {[%emt 0:03:30]} Na5 {[%emt 0:01:30]} 19. h5 {[%emt 0:09:30]} Be4 {[%emt 0:11:30]} 20. Rbc1 {[%emt 0:01:30]} Rxc1 {[%emt 0:00:30]} 21. Rxc1 {[%emt 0:00:30]} Rc8 {[%emt 0:00:30]} 22. Rxc8 {[%emt 0:00:30]} Qxc8 {[%emt 0:00:30]} 23. hxg6 {[%emt 0:00:00]} Bxg6 {[%emt 0:04:30]} 24. Bd3 {[%emt 0:05:00]} Ba3 {[%emt 0:05:30]} 25. Bxg6 {[%emt 0:01:30]} hxg6 {[%emt 0:00:30]} 26. d5 {[%emt 0:05:30]} Bc1 {[%emt 0:09:30]} 27. Qd4 {[%emt 0:03:30]} Bh6 {[%emt 0:02:30]} 28. d6 {[%emt 0:01:30]} Qd7 {[%emt 0:01:30]} 29. Qc3 {[%emt 0:01:30]} Nc6 {[%emt 0:03:30]} 30. Nd4 {[%emt 0:00:30]} Nxd4 {[%emt 0:01:30]} 31. Qxd4 {[%emt 0:00:30]} Bg7 {[%emt 0:01:30]} 32. Qc3 {[%emt 0:02:30]} Bxf6 {[%emt 0:00:30]} 33. Qc7 {[%emt 0:01:30]} Qa4 {[%emt 0:03:30]} 34. exf6 {[%emt 0:00:30]} Qd1+ {[%emt 0:00:30]} 35. Kh2 {[%emt 0:00:30]} Qh5+ {[%emt 0:00:00]} 36. Kg3 {[%emt 0:00:30]} Qg5+ {[%emt 0:00:00]} 37. Kf3 {[%emt 0:03:30]} Qxf6+ {[%emt 0:00:30]} 38. Ke4 {[%emt 0:00:30]} Qf5+ {[%emt 0:01:30]} 39. Kd4 {[%emt 0:00:30]} Qxf2+ {[%emt 0:00:30]} 40. Kc4 {[%emt 0:01:30]} Qxa2+ {[%emt 0:00:30]} 41. Kb5 {[%emt 0:00:30]} a6+ {[%emt 0:13:30]} 42. Kc6 {[%emt 0:00:30]} Qd5+ {[%emt 0:00:30]} 43. Kd7 {[%emt 0:00:00]} e5 {[%emt 0:00:51]} 44. Kd8 {[%emt 0:03:00]} e4 {[%emt 0:01:02]} 45. Qe7 {[%emt 0:00:30]} Qa8+ {[%emt 0:05:15]} 46. Kc7 {[%emt 0:00:30]} Qa7+ {[%emt 0:00:00]} 47. Kc6 {[%emt 0:01:30]} Qa8+ {[%emt 0:00:00]} 48. Qb7 {[%emt 0:00:30]} Qd8 {[%emt 0:01:30]} 49. d7 {[%emt 0:00:30]} Kf8 {[%emt 0:00:30]} 50. Kd6 {[%emt 0:00:30]} Qe7+ {[%emt 0:02:56]} 51. Kc7 {[%emt 0:01:30]} e3 {[%emt 0:03:12]} 52. Qc8+ {[%emt 0:00:30]} Kg7 {[%emt 0:00:00]} 53. Qe8 {[%emt 0:00:00]} Qc5+ {[%emt 0:00:16]} 54. Kb7 {[%emt 0:01:00]} Qd5+ {[%emt 0:00:30]} 55. Ka7 {[%emt 0:00:00]} e2 {[%emt 0:00:24]} 56. d8=Q {[%emt 0:00:00]} Qxd8 {[%emt 0:00:53]} 57. Qxd8 {[%emt 0:00:30]} e1=Q {[%emt 0:00:30]} 58. Qd4+ {[%emt 0:00:30]} Kh6 {[%emt 0:00:23]} 59. Qf4+ {[%emt 0:00:30]} Kg7 {[%emt 0:00:57]} 60. Qd4+ {[%emt 0:00:30]} Kf8 {[%emt 0:00:00]} 61. Kxb6 {[%emt 0:00:30]} Qe6+ {[%emt 0:00:36]} 62. Kc7 {[%emt 0:02:30]} f6 {[%emt 0:01:06]} 63. Qd8+ {[%emt 0:01:30]} Kf7 {[%emt 0:00:30]} 64. Qh8 {[%emt 0:00:30]} f5 {[%emt 0:00:24]} 65. Qh7+ {[%emt 0:00:30]} Kf6 {[%emt 0:00:55]} 66. Qh8+ {[%emt 0:01:30]} Kg5 {[%emt 0:00:22]} 67. Qd8+ {[%emt 0:00:00]} Kg4 {[%emt 0:00:52]} 68. Qd1+ {[%emt 0:00:00]} Kf4 {[%emt 0:00:43]} 69. Qf3+ {[%emt 0:01:30]} Ke5 {[%emt 0:00:30]} 70. Qc3+ {[%emt 0:00:30]} Kf4 {[%emt 0:00:30]} 71. Qf3+ {[%emt 0:00:30]} Kg5 {[%emt 0:00:30]} 72. Qg3+ {[%emt 0:00:30]} Kf6 {[%emt 0:00:30]} 73. Qh4+ {[%emt 0:00:30]} Kg7 {[%emt 0:00:30]} 74. Qg3 {[%emt 0:00:30]} Kf7 {[%emt 0:00:30]} 75. Qh3 {[%emt 0:00:30]} f4 {[%emt 0:00:30]} 76. Qh7+ {[%emt 0:00:30]} Kf6 {[%emt 0:00:30]} 77. Qh8+ {[%emt 0:00:30]} Kg5 {[%emt 0:02:50]} 78. Qd8+ {[%emt 0:08:30]} Qf6 {[%emt 0:00:34]} 79. Qd5+ {[%emt 0:01:30]} Qf5 {[%emt 0:00:22]} 80. Qd8+ {[%emt 0:00:00]} Kg4 {[%emt 0:01:22]} 81. Qd1+ {[%emt 0:00:00]} Kg3 {[%emt 0:00:16]} 82. Qf3+ {[%emt 0:00:30]} Kh2 {[%emt 0:00:20]} 83. Qf2 {[%emt 0:00:30]} Qe4 {[%emt 0:01:57]} 84. g4+ {[%emt 0:02:30]} Qg2 {[%emt 0:00:08]} 85. Qh4+ {[%emt 0:00:30]} Kg1 {[%emt 0:00:06]} 86. Qe1+ {[%emt 0:01:30]} Qf1 {[%emt 0:00:04]} 87. Qe5 {[%emt 0:00:30]} Qc1+ {[%emt 0:01:26]} 88. Kb7 {[%emt 0:00:30]} Qe3 {[%emt 0:00:13]} 89. Qa1+ {[%emt 0:00:30]} Kg2 {[%emt 0:00:08]} 90. Qxa6 {[%emt 0:01:30]} f3 {[%emt 0:01:09]} 91. Qc6 {[%emt 0:00:30]} Kg1 {[%emt 0:00:25]} 0-1

[Event "7th Ali Ipek Memorial 2019"]
[Site "Ankara"]
[Date "2019.03.07"]
[Round "2.10"]
[White "Nazli, Sertan"]
[Black "Ergun, Abdurrahman"]
[Result "1/2-1/2"]
[ECO "D03"]
[WhiteElo "1807"]
[BlackElo "1300"]
[Annotator "NA RC"]
[PlyCount "123"]
[EventDate "2019.03.06"]
[EventType "swiss"]
[EventCountry "TUR"]
[SourceTitle "playchess.com"]
[Source "ChessBase"]
[SourceQuality "1"]
[TimeControl "5400+30"]

1. d4 {[%emt 0:07:30]} d5 {[%emt 0:04:30]} 2. Nf3 {[%emt 0:00:30]} Nf6 {[%emt 0:00:30]} 3. Bg5 {[%emt 0:00:30]} Ne4 {[%emt 0:01:30]} 4. Bf4 {[%emt 0:00:30]} Bf5 {[%emt 0:00:30]} 5. e3 {[%emt 0:00:30]} e6 {[%emt 0:00:30]} 6. Bd3 {[%emt 0:02:30] D03: 1 d4 d5 2 Nf3 Nf6 3 Bg5, including Torre Attack with early ...d5} c5 {[%emt 0:02:30]} 7. c3 {[%emt 0:02:30]} Nd7 $146 {[%emt 0:00:30]} ({Predecessor:} 7... Nc6 8. O-O Be7 9. h3 O-O 10. Ne5 Nxe5 11. Bxe5 Qb6 12. Qe2 c4 13. Bxe4 Bxe4 {0-1 (53) Nechaev,O (2358)-Shaposhnikov,E (2557) Sochi 2016}) 8. Qe2 {[%emt 0:10:30]} h6 {[%emt 0:02:30]} 9. O-O {[%emt 0:09:30]} Be7 {[%emt 0:00:30]} 10. c4 {[%emt 0:00:30]} dxc4 {[%emt 0:03:30]} 11. Bxc4 {[%emt 0:00:30]} O-O {[%emt 0:05:30]} 12. Nc3 {[%emt 0:00:30]} g5 {[%emt 0:06:30]} 13. Be5 {[%emt 0:06:30]} a6 {[%emt 0:03:30]} 14. Nxe4 {[%emt 0:04:30]} Bxe4 {[%emt 0:03:30]} 15. h4 {[%emt 0:08:30]} Bg6 {[%emt 0:04:30]} 16. dxc5 {[%emt 0:04:30]} (16. hxg5 $11 hxg5 17. Rfd1) 16... g4 {[%emt 0:02:30]} 17. Rfd1 $2 {[%emt 0:03:30]} (17. Bf4 $17 {might work better.} gxf3 18. Qxf3 Bxh4 19. Rad1) 17... gxf3 {[%emt 0:00:30]} 18. Qxf3 $2 {[%emt 0:00:30]} (18. gxf3 Nxe5 19. Rxd8 Raxd8 20. f4) 18... Nxe5 {[%emt 0:00:30]} 19. Qg3 {[%emt 0:00:30]} Bxh4 {[%emt 0:01:30]} 20. Qxe5 {[%emt 0:00:30]} Qf6 {[%emt 0:00:30]} 21. Qxf6 {[%emt 0:05:30]} Bxf6 {[%emt 0:00:30]} 22. Rd7 {[%emt 0:00:00]} Bxb2 {[%emt 0:01:30]} 23. Rad1 {[%emt 0:01:00]} Be4 {[%emt 0:00:30]} 24. f3 {[%emt 0:04:30]} Bc6 {[%emt 0:01:30]} 25. R7d6 {[%emt 0:01:30]} Ba3 {[%emt 0:00:30]} 26. Kf2 {[%emt 0:00:30]} Bxc5 {[%emt 0:00:30]} 27. R6d2 {[%emt 0:00:00]} b5 {[%emt 0:01:30]} 28. Be2 {[%emt 0:05:00]} Bd5 {[%emt 0:00:30]} 29. f4 {[%emt 0:01:30]} Rac8 {[%emt 0:00:30]} 30. f5 {[%emt 0:00:30]} Kg7 {[%emt 0:01:30]} 31. Rh1 {[%emt 0:00:30]} Bb6 {[%emt 0:01:30]} 32. Rh3 {[%emt 0:02:57]} Ba5 {[%emt 0:04:30]} 33. Rd3 {[%emt 0:04:20]} Rc1 {[%emt 0:01:30]} 34. Bd1 {[%emt 0:01:02]} Kh7 {[%emt 0:01:30]} 35. Ra3 {[%emt 0:02:08]} Bb4 {[%emt 0:00:30]} 36. Rd3 {[%emt 0:00:30]} Rg8 {[%emt 0:00:30]} 37. g3 {[%emt 0:02:29]} Rg5 {[%emt 0:00:30]} 38. g4 {[%emt 0:00:46]} Ra1 {[%emt 0:00:30]} 39. Bb3 {[%emt 0:00:30]} Be1+ {[%emt 0:01:30]} 40. Ke2 {[%emt 0:01:58]} Bc6 {[%emt 0:04:30]} 41. fxe6 {[%emt 0:00:31]} Rxg4 {[%emt 0:00:30]} 42. Rd6 {[%emt 0:02:46]} Rg2+ {[%emt 0:00:30]} 43. Kf1 {[%emt 0:02:01]} Bb4+ {[%emt 0:00:30]} 44. Rd1 {[%emt 0:00:42]} Rxd1+ {[%emt 0:00:30]} 45. Bxd1 {[%emt 0:00:00]} fxe6 {[%emt 0:00:30]} 46. Bb3 {[%emt 0:00:35]} Rb2 {[%emt 0:00:30]} 47. Rh5 {[%emt 0:00:31]} Rb1+ {[%emt 0:00:30]} 48. Kf2 {[%emt 0:00:36]} Rh1 {[%emt 0:02:30]} 49. Re5 {[%emt 0:00:30]} Bd5 {[%emt 0:01:30]} 50. Bxd5 {[%emt 0:03:48]} exd5 {[%emt 0:00:00]} 51. Rxd5 {[%emt 0:00:27]} Rh2+ {[%emt 0:00:00]} 52. Kf3 {[%emt 0:00:30]} Rxa2 {[%emt 0:00:30]} 53. e4 {[%emt 0:00:31]} Ra3+ {[%emt 0:00:30]} 54. Kf4 {[%emt 0:00:30]} Bd2+ {[%emt 0:00:30]} 55. Rxd2 {[%emt 0:00:30]} b4 {[%emt 0:00:30]} 56. Kf5 {[%emt 0:00:30]} b3 {[%emt 0:00:30]} 57. Rd7+ {[%emt 0:00:30]} Kg8 {[%emt 0:00:30]} 58. Kf6 {[%emt 0:00:30]} b2 {[%emt 0:00:30]} 59. Rd8+ {[%emt 0:00:30]} Kh7 {[%emt 0:00:30]} 60. Rd7+ {[%emt 0:00:30]} Kh8 {[%emt 0:00:30]} 61. Rd8+ {[%emt 0:00:30]} Kh7 {[%emt 0:00:30]} 62. Rd7+ {[%emt 0:00:00]} 1/2-1/2

[Event "7th Ali Ipek Memorial 2019"]
[Site "Ankara"]
[Date "2019.03.07"]
[Round "2.11"]
[White "Ugurlu, Gokhan"]
[Black "Alkan, Omer Tarik"]
[Result "0-1"]
[ECO "A14"]
[WhiteElo "1342"]
[BlackElo "1717"]
[Annotator "NA RC"]
[PlyCount "128"]
[EventDate "2019.03.06"]
[EventType "swiss"]
[EventCountry "TUR"]
[SourceTitle "playchess.com"]
[Source "ChessBase"]
[SourceQuality "1"]
[TimeControl "5400+30"]

1. c4 {[%emt 0:00:30]} Nf6 {[%emt 0:15:30]} 2. g3 {[%emt 0:00:00]} e6 {[%emt 0:11:30]} 3. Bg2 {[%emt 0:00:00]} d5 {[%emt 0:00:00]} 4. b3 {[%emt 0:04:30]} Be7 {[%emt 0:00:00]} 5. Nf3 {[%emt 0:03:30]} c5 {[%emt 0:00:00]} 6. O-O {[%emt 0:00:30]} Nc6 {[%emt 0:00:00]} 7. Bb2 {[%emt 0:01:30]} O-O {[%emt 0:00:30]} 8. d4 {[%emt 0:03:30]} dxc4 {[%emt 0:01:30]} 9. bxc4 {[%emt 0:00:00]} Qb6 {[%emt 0:01:30]} 10. Qd2 {[%emt 0:00:00]} cxd4 {[%emt 0:00:30]} 11. Bxd4 {[%emt 0:02:30]} Nxd4 {[%emt 0:00:30]} 12. Qxd4 {[%emt 0:00:30]} Bc5 {[%emt 0:00:30]} 13. Qd3 {[%emt 0:08:30]} Rd8 {[%emt 0:00:30]} 14. Qc2 {[%emt 0:00:00]} e5 {[%emt 0:03:30]} 15. Nbd2 {[%emt 0:02:00]} Ng4 {[%emt 0:01:30]} 16. e3 {[%emt 0:00:30]} Be6 {[%emt 0:06:30]} 17. h3 {[%emt 0:00:30]} Nf6 {[%emt 0:02:30]} 18. Nxe5 {[%emt 0:03:30]} Bxe3 {[%emt 0:00:30]} 19. Nef3 {[%emt 0:02:30]} Bc5 {[%emt 0:03:30]} 20. Rab1 {[%emt 0:02:30]} Qd6 {[%emt 0:00:00]} 21. Nb3 {[%emt 0:11:30]} Bb6 {[%emt 0:01:00]} 22. Ng5 {[%emt 0:03:30]} Rac8 {[%emt 0:03:30]} 23. Nxe6 {[%emt 0:01:30]} Qxe6 {[%emt 0:00:30]} 24. c5 {[%emt 0:00:30]} Qe7 {[%emt 0:10:30]} 25. Rbc1 {[%emt 0:04:30]} Bxc5 {[%emt 0:12:30]} 26. Nxc5 {[%emt 0:03:30]} b6 {[%emt 0:00:00]} 27. Rfd1 {[%emt 0:08:30]} Rxd1+ {[%emt 0:06:12]} 28. Rxd1 {[%emt 0:03:30]} Qxc5 {[%emt 0:01:00]} 29. Qd3 {[%emt 0:08:30]} a5 {[%emt 0:01:06]} 30. Kf1 {[%emt 0:06:14]} Kf8 {[%emt 0:02:37]} 31. Rd2 {[%emt 0:06:46]} b5 {[%emt 0:00:57]} 32. Qd6+ {[%emt 0:05:01]} Qxd6 {[%emt 0:00:30]} 33. Rxd6 {[%emt 0:00:00]} Rc2 {[%emt 0:00:26]} 34. a3 {[%emt 0:00:31]} Rc3 {[%emt 0:00:56]} 35. Rb6 {[%emt 0:01:27]} Rxa3 {[%emt 0:01:26]} 36. Rxb5 {[%emt 0:00:30]} Ra2 {[%emt 0:00:30]} 37. Rb7 {[%emt 0:00:30]} a4 {[%emt 0:00:30]} 38. Ra7 {[%emt 0:00:30]} g6 {[%emt 0:00:30]} 39. Bc6 {[%emt 0:00:30]} a3 {[%emt 0:00:30]} 40. Bb5 {[%emt 0:00:30]} Ne4 {[%emt 0:00:30]} 41. Rxf7+ {[%emt 0:00:30]} Kxf7 {[%emt 0:00:30]} 42. Bc4+ {[%emt 0:00:30]} Kf6 {[%emt 0:00:30]} 43. Bxa2 {[%emt 0:00:30]} Nc3 {[%emt 0:00:30]} 44. Bb3 {[%emt 0:00:30]} a2 {[%emt 0:00:30]} 45. Bxa2 {[%emt 0:00:30]} Nxa2 {[%emt 0:00:30]} 46. Kg2 {[%emt 0:00:30]} Kf5 {[%emt 0:00:30]} 47. Kf3 {[%emt 0:00:30]} Nc3 {[%emt 0:00:30]} 48. h4 {[%emt 0:00:30]} h5 {[%emt 0:00:30]} 49. Ke3 {[%emt 0:00:30]} Kg4 {[%emt 0:00:30]} 50. Kd4 {[%emt 0:00:30]} Ne2+ {[%emt 0:00:30]} 51. Ke3 {[%emt 0:00:30]} Nxg3 {[%emt 0:00:30]} 52. fxg3 {[%emt 0:00:30]} Kxg3 {[%emt 0:00:30]} 53. Ke2 {[%emt 0:00:30]} Kxh4 {[%emt 0:00:30]} 54. Kf3 {[%emt 0:00:30]} g5 {[%emt 0:00:30]} 55. Kg2 {[%emt 0:00:30]} Kg4 {[%emt 0:00:30]} 56. Kh2 {[%emt 0:00:30]} Kf3 {[%emt 0:00:30]} 57. Kh3 {[%emt 0:00:30]} h4 {[%emt 0:00:30]} 58. Kh2 {[%emt 0:00:30]} g4 {[%emt 0:00:30]} 59. Kh1 {[%emt 0:00:30]} g3 {[%emt 0:00:30]} 60. Kg1 {[%emt 0:00:30]} g2 {[%emt 0:00:30]} 61. Kh2 {[%emt 0:00:30]} Kf2 {[%emt 0:00:30]} 62. Kh3 {[%emt 0:00:30]} g1=R {[%emt 0:00:30]} 63. Kh2 {[%emt 0:00:00]} h3 {[%emt 0:00:00]} 64. Kxh3 {[%emt 0:00:00]} Rg8 {[%emt 0:00:00]} 0-1

[Event "7th Ali Ipek Memorial 2019"]
[Site "Ankara"]
[Date "2019.03.07"]
[Round "2.12"]
[White "Coban, Eren Cinar"]
[Black "Baycu, Arda"]
[Result "1/2-1/2"]
[ECO "A26"]
[WhiteElo "1693"]
[BlackElo "1369"]
[Annotator "NA RC"]
[PlyCount "105"]
[EventDate "2019.03.06"]
[EventType "swiss"]
[EventCountry "TUR"]
[SourceTitle "playchess.com"]
[Source "ChessBase"]
[SourceQuality "1"]
[TimeControl "5400+30"]

1. c4 {[%emt 0:00:30]} Nf6 {[%emt 0:00:30]} 2. g3 {[%emt 0:00:30]} g6 {[%emt 0:00:30]} 3. Bg2 {[%emt 0:00:00]} Bg7 {[%emt 0:00:30]} 4. Nc3 {[%emt 0:00:00]} O-O {[%emt 0:00:30]} 5. d3 {[%emt 0:00:30]} d6 {[%emt 0:00:00]} 6. e4 {[%emt 0:00:00]} e5 {[%emt 0:01:00]} 7. Nge2 {[%emt 0:00:00]} Nc6 {[%emt 0:01:30]} 8. h3 {[%emt 0:00:30]} Ne7 {[%emt 0:06:30]} 9. O-O {[%emt 0:04:30]} Nd7 {[%emt 0:00:30]} 10. Be3 {[%emt 0:02:30]} a6 {[%emt 0:01:30]} 11. Kh2 {[%emt 0:01:30]} c5 {[%emt 0:00:30]} 12. Qd2 {[%emt 0:05:30]} Qe8 {[%emt 0:04:30]} 13. Rab1 {[%emt 0:01:30]} f5 {[%emt 0:01:30]} 14. f4 {[%emt 0:10:30]} Rb8 {[%emt 0:00:30]} 15. exf5 {[%emt 0:02:30]} gxf5 {[%emt 0:00:30]} 16. b4 {[%emt 0:02:30]} b6 {[%emt 0:01:30]} 17. Nd5 {[%emt 0:02:30]} Nxd5 {[%emt 0:01:30]} 18. Bxd5+ {[%emt 0:00:30]} Kh8 {[%emt 0:00:00]} 19. Bc6 {[%emt 0:05:30]} Bb7 {[%emt 0:01:00]} 20. b5 {[%emt 0:02:30]} Qc8 {[%emt 0:03:30]} 21. Bxb7 {[%emt 0:06:30]} Qxb7 {[%emt 0:01:30]} 22. bxa6 {[%emt 0:02:30]} Qxa6 {[%emt 0:00:30]} 23. Nc3 {[%emt 0:01:30]} exf4 {[%emt 0:02:30]} 24. Bxf4 {[%emt 0:01:30]} Ne5 {[%emt 0:00:30]} 25. Nb5 {[%emt 0:03:30]} Rbd8 {[%emt 0:00:30]} 26. Nc7 {[%emt 0:00:30]} Qc8 {[%emt 0:00:30]} 27. Nd5 {[%emt 0:01:30]} Qe6 {[%emt 0:03:30]} 28. Rxb6 {[%emt 0:01:30]} Rb8 {[%emt 0:00:30]} 29. Rb3 {[%emt 0:08:30]} Rxb3 {[%emt 0:02:30]} 30. axb3 {[%emt 0:00:30]} Rb8 {[%emt 0:00:00]} 31. Nc7 {[%emt 0:06:30]} Qd7 {[%emt 0:01:00]} 32. Nb5 {[%emt 0:01:30]} d5 {[%emt 0:00:30]} 33. Qg2 {[%emt 0:14:44]} dxc4 {[%emt 0:01:30]} 34. dxc4 {[%emt 0:00:13]} Qd3 {[%emt 0:00:00]} 35. Bxe5 {[%emt 0:02:52]} Bxe5 {[%emt 0:00:00]} 36. Qf3 {[%emt 0:01:32]} Rd8 {[%emt 0:01:30]} 37. Qxd3 {[%emt 0:01:22]} Rxd3 {[%emt 0:00:00]} 38. Rxf5 {[%emt 0:00:31]} Bxg3+ {[%emt 0:00:00]} 39. Kg2 {[%emt 0:00:32]} Rxb3 {[%emt 0:00:00]} 40. Rxc5 {[%emt 0:00:30]} Bf4 {[%emt 0:00:00]} 41. Rc8+ {[%emt 0:00:50]} Kg7 {[%emt 0:00:30]} 42. Nd4 {[%emt 0:00:16]} Rb2+ {[%emt 0:06:30]} 43. Kf3 {[%emt 0:00:30]} Be5 {[%emt 0:00:00]} 44. Nc6 {[%emt 0:05:05]} Bd6 {[%emt 0:01:00]} 45. Rd8 {[%emt 0:00:56]} Rb3+ {[%emt 0:02:30]} 46. Ke4 {[%emt 0:00:30]} Bh2 {[%emt 0:00:30]} 47. Rd7+ {[%emt 0:00:30]} Kg6 {[%emt 0:00:30]} 48. h4 {[%emt 0:00:30]} Rh3 {[%emt 0:00:00]} 49. Ne7+ {[%emt 0:01:33]} Kf6 {[%emt 0:02:00]} 50. Nd5+ {[%emt 0:00:30]} Kg6 {[%emt 0:00:00]} 51. Ne7+ {[%emt 0:01:08]} Kf6 {[%emt 0:00:00]} 52. Ng8+ {[%emt 0:00:02]} Kg6 {[%emt 0:00:30]} 53. Ne7+ {[%emt 0:00:13]} 1/2-1/2

[Event "7th Ali Ipek Memorial 2019"]
[Site "Ankara"]
[Date "2019.03.08"]
[Round "3.1"]
[White "Banci, Dogancan"]
[Black "Guven, Oguz Kaan"]
[Result "0-1"]
[ECO "B23"]
[WhiteElo "1599"]
[BlackElo "2096"]
[Annotator "NA RC"]
[PlyCount "82"]
[EventDate "2019.03.06"]
[EventType "swiss"]
[EventCountry "TUR"]
[SourceTitle "playchess.com"]
[Source "ChessBase"]
[SourceQuality "1"]
[TimeControl "5400+30"]

1. e4 {[%emt 0:00:30]} c5 {[%emt 0:00:30]} 2. Nc3 {[%emt 0:00:30]} a6 {[%emt 0:00:00]} 3. a4 {[%emt 0:00:30]} Nc6 {[%emt 0:02:00]} 4. Nf3 {[%emt 0:00:30]} g6 {[%emt 0:00:30]} 5. d4 {[%emt 0:01:30]} cxd4 {[%emt 0:00:30]} 6. Nxd4 {[%emt 0:00:30] B23: Closed Sicilian: Lines without g3} Bg7 {[%emt 0:00:00]} 7. Be3 {[%emt 0:01:30]} d6 {[%emt 0:02:00]} 8. Bc4 {[%emt 0:04:30]} Nf6 {[%emt 0:00:30]} 9. h3 {[%emt 0:09:30]} O-O {[%emt 0:00:30]} 10. O-O {[%emt 0:00:30]} (10. Nb3 Na5 11. Nxa5 Qxa5 12. O-O Be6 13. Nd5 Bxd5 14. exd5 Rac8 15. Bb3 Nd7 16. c3 Rfe8 {½-½ (74) Ghaem Maghami,E (2591)-Mirzoev,A (2553) Teheran 2014}) 10... Bd7 {[%emt 0:00:30]} 11. Qd2 {[%emt 0:03:30]} Rc8 {[%emt 0:00:00]} 12. Ba2 {[%emt 0:02:30]} Na5 {[%emt 0:13:00]} 13. f3 $146 {[%emt 0:12:30]} ({Predecessor:} 13. f4 Nc4 14. Bxc4 Rxc4 15. e5 Ne8 16. Nf3 Be6 17. b3 Rc8 {0-1 (48) Zoch,W (2076)-Zesch,L (2203) Germany 2000}) 13... Nc4 {[%emt 0:02:30]} 14. Bxc4 {[%emt 0:00:30]} Rxc4 {[%emt 0:00:00]} 15. a5 {[%emt 0:05:30]} Qb8 {[%emt 0:04:00]} 16. b3 {[%emt 0:05:30]} Rc5 {[%emt 0:05:30]} 17. Na4 {[%emt 0:03:30]} Bxa4 {[%emt 0:00:30]} 18. Rxa4 {[%emt 0:00:30]} Rcc8 {[%emt 0:06:30]} 19. c4 {[%emt 0:03:30]} e6 {[%emt 0:00:30]} 20. Bh6 {[%emt 0:08:30]} Qa7 {[%emt 0:23:30]} 21. Be3 {[%emt 0:05:30]} Qb8 {[%emt 0:00:00]} 22. Ne2 {[%emt 0:02:30]} Rfe8 {[%emt 0:13:00]} 23. Bf4 {[%emt 0:06:30]} Qa7+ {[%emt 0:00:30]} 24. Be3 {[%emt 0:00:30]} ({White should try} 24. Kh1 $14) 24... Qb8 {[%emt 0:02:30]} 25. Bf4 {[%emt 0:01:30]} Red8 {[%emt 0:03:30]} 26. Rd1 {[%emt 0:00:48]} Nd7 {[%emt 0:04:58]} 27. Qe3 {[%emt 0:06:55]} Nc5 {[%emt 0:01:29]} 28. Rb4 {[%emt 0:01:43]} Qc7 {[%emt 0:04:53]} 29. Rb6 {[%emt 0:00:46]} Be5 {[%emt 0:00:25]} 30. Bg5 {[%emt 0:07:21]} f6 {[%emt 0:02:42]} 31. Bf4 {[%emt 0:00:05]} Kf7 {[%emt 0:04:18]} 32. Bh2 {[%emt 0:02:46]} (32. Qd2 $14 {keeps the upper hand.}) 32... Nd7 {[%emt 0:01:37]} (32... Bxh2+ $15 33. Kxh2 d5+ 34. Qf4 Nd7 35. Qxc7 Rxc7) 33. Bxe5 $11 {[%emt 0:00:21]} dxe5 {[%emt 0:00:35]} 34. Rbd6 {[%emt 0:00:54]} Nb8 {[%emt 0:01:31]} 35. Rxd8 {[%emt 0:01:41]} Rxd8 {[%emt 0:00:30]} 36. Rxd8 {[%emt 0:00:30]} Qxd8 {[%emt 0:00:00]} 37. b4 {[%emt 0:01:07]} Nc6 {[%emt 0:00:00]} 38. Qb3 {[%emt 0:00:38]} Qd2 {[%emt 0:00:17]} 39. Nc3 {[%emt 0:00:35]} Nd4 {[%emt 0:00:34]} 40. Qa3 {[%emt 0:00:26]} Qxc3 {[%emt 0:00:00]} 41. Qxc3 {[%emt 0:00:33]} Ne2+ {[%emt 0:00:00]} 0-1